Cogmind - Beta 13 @@@ ROGUE MODE // 2024.07.10 @ 17:19:57 Player: Duduxx Result: Smashed by cave-in Performance ------------- Evolutions (0) 0 Regions Visited (1) 200 Robots Destroyed (19) 95 Value Destroyed (478) 478 Prototype IDs (2) 40 Alien Tech Used (0) 0 Bonus (0) 0 TOTAL SCORE: 813 Bonus ------- None Cogmind --------- Core Integrity 0/250 Matter 168/300 Energy 246/250 System Corruption 0% Temperature Cool (2) Movement Walking (190) Ox1 Location -10/Materials Parts ------- > --- POWER (1) -------- Ion Engine > --- PROPULSION (2) --- Aluminum Leg Aluminum Leg > --- UTILITY (2) ------ Large Storage Unit Hardened Light Armor Plating > --- WEAPON (2) ------- Assault Rifle Hammer > --- INVENTORY (15) --- Ion Engine Light Treads Hover Unit Medium Storage Unit Structural Scanner Hardened Light Armor Plating Hacking Suite Medium Laser Light Assault Rifle Grenade Launcher Peak State ------------ > --- POWER ------------ Ion Engine > --- PROPULSION ------- Light Treads Light Treads > --- UTILITY ---------- Large Storage Unit Hardened Light Armor Plating > --- WEAPON ----------- Assault Rifle Light Assault Rifle > --- INVENTORY -------- Ion Engine Light Treads Aluminum Leg Aluminum Leg Medium Storage Unit Structural Scanner Hardened Light Armor Plating Medium Laser Grenade Launcher [Rating: 9] Favorites ----------- Power Ion Engine Engine Ion Engine Propulsion Light Treads Treads Light Treads Leg Aluminum Leg Utility Large Storage Unit Storage Large Storage Unit Protection Hardened Light Armor Plating Weapon Assault Rifle Ballistic Gun Assault Rifle Impact Weapon Hammer Build | -11 -10 ------- Run | Yrd Mat Slots Evolved . | . . Power . | . . Propulsion . | . . Utility . | . . Weapon . | . . Parts Attached 18 | 6 12 Power 2 | 1 1 Engine 2 | 1 1 Core . | . . Reactor . | . . Propulsion 7 | 2 5 Treads 4 | 2 2 Leg 3 | . 3 Wheel . | . . Hover . | . . Flight . | . . Utility 6 | 1 5 Device . | . . Storage 2 | 1 1 Processor . | . . Hackware . | . . Protection 4 | . 4 Artifact . | . . Weapon 3 | 2 1 Energy Gun . | . . Energy Cannon . | . . Ballistic Gun 2 | 2 . Ballistic Cannon . | . . Launcher . | . . Special Weapon . | . . Impact Weapon 1 | . 1 Slashing Weapon . | . . Piercing Weapon . | . . Special Melee Weapon . | . . Unidentified Prototypes . | . . Parts Lost 2 | . 2 Power . | . . Propulsion 1 | . 1 Utility 1 | . 1 Weapon . | . . Highest Loss Streak 1 | . 1 To Critical Strikes 1 | . 1 Average Slot Usage (%) 99 | . 99 Engine 14 | . 14 Treads 24 | . 24 Leg 3 | . 3 Storage 14 | . 14 Protection 13 | . 13 Ballistic Gun 27 | . 27 Naked Turns . | . . Heaviest Build 34 | 13 34 Greatest Support 40 | 40 40 Greatest Overweight (x) 1 | . 1 Average Overweight (x) . | . . Largest Inventory Capacity 15 | 8 15 Average Capacity 13 | 7 14 Most Carried 11 | 4 11 Average Carried 7 | 2 7 Final Capacity 15 | 8 15 Final Carried 10 | 4 10 Class Distribution -------------------- 100% | Mutant Dominant Class ---------------- Mutant | -10/Materials Resources | -11 -10 ----------- Run | Yrd Mat Matter Collected 510 | 199 311 Remotely . | . . Salvage Created 618 | . 618 Parts 39 | . 39 Haulers Intercepted 1 | . 1 Recyclers Shooed . | . . Parts Field Recycled . | . . Retrieved Matter . | . . Parts Self-Destructed . | . . Prevented . | . . Kills | -11 -10 ------- Run | Yrd Mat Combat Hostiles Destroyed 13 | . 13 Guns 13 | . 13 Classes Destroyed 5 | . 5 Hauler 1 | . 1 Operator 2 | . 2 Watcher 3 | . 3 Swarmer 3 | . 3 Grunt 10 | . 10 Best Kill Streak 4 | . 4 Combat Bots Only 4 | . 4 Max Kills in Single Turn 1 | . 1 Gunslinging . | . . Exploded . | . . Melee . | . . Uniques/NPCs Destroyed . | . . Combat | -11 -10 -------- Run | Yrd Mat Hostile Shots Fired 112 | . 112 Missed 24 | . 24 Damage Taken 1418 | . 1418 Core 258 | . 258 Absorbed by Shields . | . . Core Remaining (%) 100 | 100 . Volleys Fired 71 | . 71 Largest 2 | . 2 Hottest 40 | . 40 Shots Fired 142 | . 142 Gun 142 | . 142 Cannon . | . . Launcher . | . . Special . | . . Kinetic 142 | . 142 Thermal . | . . Explosive . | . . Electromagnetic . | . . Robot Hit Streak 14 | . 14 Robot Miss Streak 6 | . 6 Penetration Max . | . . Secondary Targets 1 | . 1 Max Gunslinging Chain 1 | . 1 Shots Hit Robots 88 | . 88 Core Hits 40 | . 40 Critical Kills 1 | . 1 Critical Parts Destroyed 1 | . 1 Critical Strikes 2 | . 2 Destroy 2 | . 2 Melee Attacks 14 | . 14 Impact 14 | . 14 Slashing . | . . Piercing . | . . Sneak Attacks . | . . Combat Hostiles . | . . Follow-up Attacks . | . . Damage Inflicted 974 | . 974 Guns 950 | . 950 Cannons . | . . Explosions . | . . Melee . | . . Ramming 24 | . 24 Kinetic 950 | . 950 Thermal . | . . Explosive . | . . Electromagnetic . | . . Impact . | . . Slashing . | . . Piercing . | . . Highest Corruption . | . . Average Corruption . | . . Corruption Purged . | . . Corruption Blocked . | . . Overload Shots . | . . Overflow Damage . | . . Projectiles . | . . Explosions . | . . Melee . | . . Knockbacks . | . . Impact . | . . Kinetic . | . . Secondary . | . . Self-Inflicted Damage . | . . Shots . | . . Rammed 3 | . 3 Targets Rammed 4 | . 4 Kicked 1 | . 1 Crushed . | . . Highest Temperature 163 | . 163 Average Temperature 41 | . 41 Received Heat Transfer 543 | . 543 Siege Activations . | . . Robots Corrupted . | . . Combat Hostiles . | . . Parts Fried . | . . Impact Corruptions . | . . Robots Melted . | . . Combat Hostiles . | . . Parts Melted . | . . Heat Transferred . | . . Parts Sabotaged . | . . Parts Stolen . | . . Parts Stripped . | . . Power Chain Reactions . | . . Alert | -11 -10 ------- Run | Yrd Mat Peak Influence 187 | . 187 Initial . | . . Average 62 | . 66 Maximum Alert Level . | . . Low Security (%) 100 | 100 100 Level 1 . | . . Level 2 . | . . Level 3 . | . . Level 4 . | . . Level 5 . | . . High Security . | . . Max Security . | . . Squads Dispatched 4 | . 4 Investigation 2 | . 2 Extermination . | . . Reinforcement 2 | . 2 Assault . | . . Garrison . | . . Intercept . | . . Searches Triggered . | . . Construction Impeded . | . . Haulers Reinforced . | . . Active Scanning Responses . | . . Cargo Convoy Interrupts . | . . Stealth | -11 -10 --------- Run | Yrd Mat Distress Signals 1 | . 1 Communications Jammed . | . . Distress Signals . | . . Times Spotted 27 | . 27 Peak Tracking Total 5 | . 5 Tactical Retreats 1 | . 1 Traps | -11 -10 ------- Run | Yrd Mat Traps Triggered 1 | . 1 Indirectly . | . . Trap Hack Attempts . | . . Triggered . | . . Disarmed . | . . Reprogrammed . | . . Reused . | . . Traps Extracted . | . . Installed . | . . Triggered . | . . Machines | -11 -10 ---------- Run | Yrd Mat Machines Disabled . | . . Max in Single Turn . | . . Machines Repaired . | . . Machines Dismantled . | . . Machines Sabotaged . | . . Overloaded Fab Kills . | . . Hacking | -11 -10 --------- Run | Yrd Mat Machines Accessed 5 | . 5 Terminals 4 | . 4 Fabricators . | . . Repair Stations . | . . Recycling Units 1 | . 1 Scanalyzers . | . . Garrison Access . | . . Total Hacks 13 | . 13 Successful 6 | . 6 Failed 7 | . 7 Catastrophic 1 | . 1 Database Lockouts . | . . Manual 2 | . 2 Terminals 12 | . 12 Fabricators . | . . Repair Stations . | . . Recycling Units 1 | . 1 Scanalyzers . | . . Garrison Access . | . . Terminal Hacks 5 | . 5 Record 1 | . 1 Robot Analysis 1 | . 1 Prototype ID Bank 1 | . 1 Hauler Manifests 1 | . 1 Registered Components 1 | . 1 Fabricator Hacks . | . . Repair Station Hacks . | . . Recycling Unit Hacks 1 | . 1 Report Inventory 1 | . 1 Scanalyzer . | . . Garrison Access Hacks . | . . Unauthorized Hacks . | . . Terminals . | . . Fabricators . | . . Repair Stations . | . . Recycling Units . | . . Scanalyzers . | . . Garrison Access . | . . Data Cores Recovered . | . . Used . | . . Hacking Detections 2 | . 2 Full Trace Events 2 | . 2 Feedback Events . | . . Feedback Blocked . | . . Robot Schematics Acquired . | . . Robots Built . | . . Authchips . | . . Time . | . . Total Robot Build Rating . | . . Part Schematics Acquired . | . . Parts Built . | . . Authchips . | . . Time . | . . Total Part Build Rating . | . . Parts Repaired . | . . Time . | . . Parts Recycled . | . . Recycled Matter . | . . Retrieved Matter . | . . Retrieved Components . | . . Parts Scanalyzed . | . . Part Schematics Acquired . | . . Parts Damaged . | . . Bothacking | -11 -10 ------------ Run | Yrd Mat Used RIF Installer . | . . Robots Hacked . | . . Non-combat . | . . Combat . | . . Robot Hacks Applied . | . . Relay Couplers Released . | . . Fabnet Peak Effective % . | . . Robots Rewired . | . . Allies Hacked . | . . Hacks Repelled . | . . Allies | -11 -10 -------- Run | Yrd Mat Total Allies . | . . Largest Group . | . . Highest-Rated Group . | . . Highest-Rated Ally . | . . Total Orders . | . . Ally Attacks . | . . Total Damage . | . . Kills . | . . Allies Corrupted . | . . Allies Melted . | . . Intel | -11 -10 ------- Run | Yrd Mat Robot Analysis Total 1 | . 1 Derelict Logs Recovered . | . . Drone Launches . | . . Drone Recoveries . | . . Exploration | -11 -10 ------------- Run | Yrd Mat Turns Passed 1343 | 76 1267 Spaces Moved 646 | 41 605 Core 1 | 1 . Treads 588 | 40 548 Legs 57 | . 57 Wheels . | . . Hover . | . . Flight . | . . Fastest Speed 50 | 50 160 Average Speed 162 | 157 162 Slowest Speed 240 | 160 240 Overloaded Moves . | . . Propulsion Burnouts . | . . Robots Hopped . | . . Cave-ins Triggered 2 | . 2 Exploration Rate (%) 48 | 4 92 Regions Visited 1 Branch Regions . Pre-discovered Areas . | . . Known Exits Taken . | . . Unknown Exits Taken 1 | 1 . Scrap Searched . | . . Spaces Dug 12 | . 12 Terrain Destroyed 12 | . 12 Melee 12 | . 12 Projectile . | . . AOE . | . . Terrain Rammed . | . . Walls Destroyed . | . . Machines Disabled . | . . Actions | -11 -10 --------- Run | Yrd Mat Total 784 | 50 734 Wait 8 | . 8 Move 644 | 40 604 Hop . | . . Pick Up 13 | 4 9 Fast Attach 10 | 6 4 Attach 4 | . 4 Detach 5 | . 5 Swap 4 | . 4 Drop 7 | . 7 Fire 71 | . 71 Melee 14 | . 14 Ram . | . . Kick 1 | . 1 Crush 3 | . 3 Escape Stasis . | . . Rewire . | . . Trap . | . . Miscellaneous . | . . Route ------- -11/Scrapyard -10/Materials (discovered 4 exits: [*Mat x3] / [*Min]) History --------- Turn | Location | Event 25 | -11/Scrapyard | Discovered new exit (range 16) 77 | -11/Scrapyard | Entered Materials 307 | -10/Materials | Build established: Mutant 577 | -10/Materials | Discovered new exit (range 16) 680 | -10/Materials | Discovered new exit (range 6) 755 | -10/Materials | Core integrity fell below 50% 999 | -10/Materials | Discovered new exit (range 13) 1148 | -10/Materials | Discovered new exit (range 13) 1342 | -10/Materials | Crushed by falling debris 1344 | -10/Materials | Crushed by falling debris 1344 | -10/Materials | Smashed by cave-in Last Messages --------------- the area. 01218_ T-07 Excavator is excavating. 01225_ U-05 Engineer lays Concrete. 01226_ O-16 Technician: "IFF HANDSHAKE FAILED. SECURING TERMINAL." 01227_ U-05 Engineer lays Concrete. 01227_ O-16 Technician uses terminal to summon reinforcements. 01227_ ALERT: Hostiles spotted, dispatching reinforcements to Terminal M005. 01227_ O-16 Technician locks terminal. 01235_ U-05 Engineer lays Concrete. 01239_ O-16 Technician destroyed. 01240_ U-05 Engineer lays Concrete. 01250_ G-34 Mercenary destroyed. 01257_ Kicked U-05 Engineer. 01314_ The unstable cave ceiling collapses. 01342_ Crushed by falling debris. 01344_ The unstable cave ceiling collapses. 01344_ Crushed by falling debris. Map ----- +----------------------------------------------------+ | # # #?# ###### | | # T # ### """ #????? | | #! # + """ #????? | | # + ################# """ #????? | | # # #???????????????# #????? | | #! # #???????????????# |#????? | | #! # #???????????????########????? | | ####### #???????????????????????????? | | ??????# #???????????????????????????? | | ??????# #???????????????????????????? | | ??????# #???????????????????????????? | | ??????# #???????????????????????????? | | ??????# #???????????????????????????? | | ??????# #???????????????????????????? | | ??????# #???????????????????????????? | | ??????# #???????????????????????????? | | ??????# #???????????????????????????? | | ??????# #????????????###########????? | | ??????# #????????????# #????? | | ??????# #????????????# ###### | | ??????# #????????????# ! # | | ??##### #????????????# + | | ??#!!! #????????????# """ ""# | | ??# ! #????????????# """ T"#### # | | ??#[[ #?############ """ ""#?# | | ??#[[ #?# @ ## #?# | | ??#[[ < #?######################?#### | | ??#[[ #???????????????????????????? | | ??#########???????????????????????????? | | ??????????????????????????????????????? | | ??????????????????????????????????????? | | ??????????????????????????????????????? | | ??????????????????????????????????????? | | ??????????????????????????????????????? | | | | | | | | | | | | | | | | | | | | | | | | | | | | | | | | | +----------------------------------------------------+ Best States ------------- Heat Dissipation 25 Energy Generation 10 Energy Capacity 250 Matter Stores 261 Matter Capacity 300 Sight Range 16 Terrain Scan Density 10 Armor Coverage 150 Evasion (%) 40 Recoil Reduction 2 Item Schematics ----------------- None Robot Schematics ------------------ None Fabricated ------------ Nothing Alien Tech Used ----------------- None Achievements -------------- None Challenges ------------ None Game ------ Seed LinkedTeslaFlightbrick Manual? 0 Play Time 00:09:17 Cumulative 35.7 hours Start 2024.07.10 @ 17:11:15 End 2024.07.10 @ 17:19:57 Sessions 1 Manual Loads 0 Difficulty Rogue Special Mode None Game No. 85 Rogue 85 Adventurer 0 Explorer 0 Win Type - Total 0 Types 0/0/0/0/0/0/0/0/0 Lore% 24 Gallery% 31 Achievement% 23 Wizard Run 0 Options --------- Layout 1 ASCII 0 Keyboard 1 Movement Arrows Keybinds 0 Fullscreen 1 Font 24/Smallcaps Map View 50x35 Zoom Use 0% Tactical HUD 1 Map Filters NONE Filters NONE Steam 1 RUN: ce6654c6-18db-4160-a757-4c792616b0e8